Workbook

Sheet кондитерская
A1: ООО "Хлебокомбинат "АБСОЛЮТ" | E1: Факт. адрес:625014, г. Тюмень, 3 км. Старого Тобольского тракта, 4а Контактные телефоны: 8 (3452) 393-933 - приёмная; 8 (3452) 393-500 - отдел реализации; e-mail absolut-hlebzakaz@mail.ru
A2: Наименование | D2: Вид и вес упаковки | F2: Отпускная цена за упаковку, руб. | H2: Срок хранения | I2: Цена за кг, руб.
A3: Сушки-баранки
A4: 1 | B4: Баранки ванильные | D4: 3,0 кг гофрокоробка | E4: 0,5 кг/6 прозрачный пакет с клипсой | F4: =SUM(I4*3) -> 207.0 | G4: 37.0 | H4: 30 суток | I4: 69.0
A5: 2 | B5: Баранки яичные | F5: =SUM(I5*3) -> 210.0 | G5: 38.0 | I5: 70.0
A6: 3 | B6: Баранки сахарные с маком | F6: 210.0 | G6: 38.0 | I6: 70.0
A7: 4 | B7: Сушки "Малютка" | D7: 4,0 кг гофрокоробка | E7: 0,4 кг/10 прозрачный пакет- подушка | F7: =SUM(I7*4) -> 280.0 | G7: 37.0 | H7: 45 суток | I7: 70.0
A8: 5 | B8: Сушки ванильные | F8: =SUM(I8*4) -> 268.0 | G8: 33.0 | I8: 67.0
A9: 6 | B9: Сушка новая | F9: =SUM(I9*4) -> 270.0 | G9: 35.0 | I9: 67.5
A10: 7 | B10: Сушки с маком | D10: - | F10: - | G10: 35.0 | I10: -
B11: Маффины- кексы - коржики
A12: 8 | B12: Коржик молочный | D12: 0,08 кг в индивидуальной п/э | F12: 13.0 | H12: 7 суток | I12: -
A13: 9 | B13: Маффины "Лакомка" ванильные | D13: 0,3 кг/9 коррекс | E13: 1,0 кг коробка - "Телевизор" | F13: 57.0 | G13: 165.0 | H13: 21 сутки | I13: 165.0
A14: 10 | B14: Маффины "Лакомка" шоколадные | F14: 60.0 | G14: 175.0 | I14: 175.0
A15: 11 | B15: Маффины "Лакомка" с черничной начинкой | D15: - | E15: 1,4 кг коробка - "Телевизор" | F15: - | G15: 252.0 | I15: 180.0
A16: 12 | B16: Маффины "Лакомка" шоколадные с творожной начинкой | D16: - | F16: - | G16: 259.0 | I16: 185.0
A17: 13 | B17: Кекс "Йогуртовый" | D17: 0,25 кг/9 коррекс | E17: 1,0 кг коробка - "Телевизор" | F17: 65.0 | G17: 220.0 | I17: 220.0
A18: 14 | B18: Кекс "Уфимский" | D18: 0,35 кг в индивидуальной п/э | F18: 55.0 | H18: 21 суток | I18: -
A19: 15 | B19: Кекс "Столичный" (с изюмом) цена за изделие весом 0,3 кг | D19: 0,3 кг в индивидуальной п/э | F19: 55.0 | H19: 21 суток | I19: -
A20: 17 | B20: Коврижка "Медовый аромат" | D20: 0,35 кг подложка | F20: 62.0 | H20: 30 суток | I20: -
A21: Печенье
A22: 18 | B22: "Банановое" (песочное с начинкой, кремфил "Банан") | D22: 0,4 кг/10 коррекс | E22: 3,0 кг коробка - "Телевизор" | F22: 60.00 | G22: =SUM(I22*3) -> 380.1 | H22: 45 суток | I22: 126.7
A23: 19 | B23: "Твист" (песочное с какао) | E23: 2,0 кг коробка - "Телевизор" | F23: 45.0 | G23: =SUM(I23*2) -> 200.0 | H23: 60 суток | I23: 100.0
A24: 20 | B24: Печенье сдобное кокосовое "Сердечки" (сдобное с кокосом) | F24: 80.0 | G24: =I24*2 -> 350.0 | H24: 45 суток | I24: 175.0
A25: 21 | B25: "Греческое" (рассыпчатое печенье с семечками и овсяными хлопьями) | F25: 67.0 | G25: =I25*2 -> 288.0 | H25: 45 суток | I25: 144.0
A26: 22 | B26: "Атланта маковое" (хрустящее печенье с маком) | D26: - | F26: - | G26: 300.0 | H26: 30 суток | I26: 150.0
A27: 23 | B27: "Атланта шоколад" (хрустящее печенье с какао) | D27: - | F27: - | G27: 280.0 | I27: 140.0
A28: 24 | B28: "Атланта" (cдобное печенье) | D28: - | F28: - | G28: 288.0 | I28: 144.0
A29: 25 | B29: "Атланта творожное" (печенье творожное с изюмом) | D29: 0,35 кг/10 коррекс | E29: 2,5 кг коробка - "Телевизор" | F29: 60.00 | G29: =SUM(I29*2.5) -> 360.0 | H29: 60 суток | I29: 144.0
A30: 26 | B30: "Атланта фруктовое" (тонкое печенье с фруктовой начинкой) | D30: - | F30: - | G30: =I30*2.5 -> 348.0 | H30: 30 суток | I30: 139.2
A31: 27 | B31: "Карусель" (со вкусом лимона) | D31: - | E31: 2,5 кг коробка - "Телевизор" | F31: - | G31: =SUM(I31*2.5) -> 320.0 | H31: 60 суток | I31: 128.0
A32: 28 | B32: "Датское" (нежное рассыпчатое песочное печенье с какао) | D32: 0,4 кг/10 коррекс | F32: 58.00 | G32: =SUM(I32*2.5) -> 300.0 | I32: 120.0
A33: 29 | B33: "Колечки медовые" песочное со вкусом меда | D33: - | E33: 2,0 кг коробка - "Телевизор" | F33: - | G33: =SUM(I33*2) -> 230.0 | I33: 115.0
A34: 30 | B34: "Овсяное" с изюмом | D34: 0,4 кг/12 пакет п/э | E34: 3,5 кг коробка | F34: 46.0 | G34: =I34*3.5 -> 341.3 | I34: 97.5
A35: 31 | B35: "Овсяное" с шоколадными каплями | F35: 44.0 | G35: =I35*3.5 -> 336.0 | I35: 96.0
A36: 32 | B36: "Овсяное" (классическое по ГОСТу) | F36: 41.0 | G36: =I36*3.5 -> 329.0 | I36: 94.0
A37: 33 | B37: "Колобок с вареной сгущенкой" (печенье с начинкой сгущеное молоко) | D37: 0,45 кг/10 коррекс | E37: 2,5 кг коробка - "Телевизор" | F37: 56.0 | G37: =I37*2.5 -> 270.0 | I37: 108.0
A38: 34 | B38: Печенье сдобное творожное (с натуральным творогом) /новинка/ | D38: - | E38: 2,0 кг коробка - "Телевизор" | F38: - | G38: =SUM(I38*2) -> 370.0 | H38: 30 суток | I38: 185.0
A39: 35 | B39: "Творожное с цукатами" | D39: - | F39: - | G39: =I39*2 -> 266.0 | I39: 133.0
A40: 36 | B40: Солнышко печенье сдобное | D40: - | F40: - | G40: =I40*2 -> 268.0 | I40: 134.0
A41: 37 | B41: "Сердечки" изделия слоенные изысканные | D41: 0,3 кг/12 коррекс | E41: - | F41: 50.0 | G41: - | H41: 30 суток | I41: -
A42: 38 | B42: "Сердечки" с корицей изделия слоенные изысканные /новинка/ | F42: 52.0 | G42: - | I42: -
A43: 39 | B43: "Ромашки" (сдобное печенье) | D43: 0,3 кг /18коррекс | E43: 2,0 кг коробка - "Телевизор" | F43: 50.0 | G43: =I43*2 -> 280.0 | H43: 60 суток | I43: 140.0
A44: 40 | B44: Сахарное "Топтыжка" топленое молоко | D44: - | E44: 3,5 кг коробка | F44: - | G44: =SUM(I44*3.5) -> 303.1 | H44: 90 суток | I44: 86.6
A45: 41 | B45: Сахарное "Топтыжка" к кофе | D45: - | E45: 3,0 кг коробка | F45: - | G45: =SUM(I45*3) -> 260.1 | I45: 86.7
A46: 42 | B46: Сахарное "Ажурное" сливочное | D46: 0,65/12 кг коробка | F46: 60.0 | G46: =SUM(I46*3) -> 279.9 | I46: 93.3
A47: 43 | B47: "Орешки" с вареной сгущенкой | D47: 0,6 кг/12 коробка | E47: 3,5 кг коробка - "Телевизор" | F47: 75.0 | G47: =SUM(I47*3.5) -> 420.0 | H47: 60 суток | I47: 120.0
A48: 44 | B48: Вафли венские /новинка/ | D48: - | E48: 1,8 кг коробка -"телевизор" | F48: - | G48: =SUM(I48*1.8) -> 198.0 | I48: 110.0
A49: 45 | B49: Вафли венские с фруктовой начинкой /новинка/ | D49: 0,35/18 кг коррекс | E49: - | F49: 40.0 | G49: - | I49: -
A50: 46 | B50: Вафли венские с вареной сгущенкой /новинка/ | F50: 46.0 | G50: - | I50: -
A51: 47 | B51: Полоски слоеные с изюмом /новинка/ | D51: 0,55 /12 кг коробка | E51: - | F51: 80.0 | G51: - | H51: 60 суток | I51: -
A52: 48 | B52: Печенье сдобное "Лакомка клюквенная" /новинка/ | D52: 0,65 /12 кг | E52: 2,5 кг коробка - "Телевизор" | F52: 95.0 | G52: =SUM(I52*2.5) -> 362.5 | H52: 60 суток | I52: 145.0
B53: Печенье сдобное "Лакомка вишневая" /новинка/ | G53: =SUM(I54*2.5) -> 370.0 | I53: 148.0
A54: 49 | B54: Печенье сдобное "Лакомка варенка" /новинка/ | D54: 0,75/12 кг коробка | F54: 100.0 | I54: 148.0
A55: 50 | B55: Печенье сдобное "Лакомка" с абрикосовой начинкой /новинка/ | D55: 0,65/12 кг коробка | F55: 95.0 | G55: =SUM(I55*2.5) -> 370.0 | I55: 148.0
A56: ПРЯНИКИ
A57: 51 | B57: "Воронежские "по ГОСТ | D57: 0,4 кг/14 пакет п/э | E57: 6,0 кг короб гофрокартон | F57: 35.0 | G57: =I57*6 -> 480.0 | H57: 60 суток | I57: 80.0
A58: 52 | B58: "Комсомольские" по ГОСТ | F58: 36.0 | G58: 490.2 | I58: 81.7
A59: 53 | B59: "Подмосковные" по ГОСТ | F59: 37.0 | G59: 490.2 | I59: 81.7
A60: 54 | B60: "Шоколадные" по ГОСТ | F60: 40.0 | G60: 514.8 | I60: 85.8
A61: 55 | B61: "Северные" по ГОСТ | F61: 35.0 | G61: 480.0 | I61: 80.0
A62: 56 | B62: "Сахарные" по ГОСТ | F62: 35.0 | G62: 480.0 | I62: 80.0
A63: 57 | B63: "Клюквенные" по ГОСТ | F63: 36.0 | G63: 490.2 | I63: 81.7
A64: 58 | B64: "Коровка" с вареной сгущенкой | D64: 0,25 кг /18пакет | E64: - | F64: 25.0 | G64: - | I64: -

Sheet ХБ
B1: ООО "Хлебокомбинат "АБСОЛЮТ"
A2: Факт. адрес:625014, г. Тюмень, 3 км. Старого Тобольского тракта, 4а Контактные телефоны: 8 (3452) 393-933 - приёмная; 8 (3452) 393-934, 8 (3452) 393-888 , 393-400, с. 89821341777 - диспетчерская служба; e-mail absolut-hlebzakaz@mail.ru
A3: Наименование | B3: Вес изделия, кг. | C3: Цена изделия без упаковки, руб. | D3: Цена изделия в упаковке, руб. | E3: Цена изделия в нарезке, руб. | F3: Срок хранения | H3: Кол-во штук в лотке
F4: без уп-ки | G4: в уп-ке
A5: ХЛЕБ
A6: Хлеб Пшеничный I сорт | B6: 0.55 | C6: 21.50 | D6: 23.00 | E6: 24.00 | F6: 24 часа | G6: 72 часа | H6: 14
A7: Хлеб Пшеничный I сорт | B7: 0.28 | C7: - | D7: - | E7: 13.00
A8: Хлеб Дарницкий | B8: 0.70 | C8: 23.00 | D8: - | E8: 25.00 | F8: 36 часов | G8: 4 суток | H8: 14
A9: Хлеб Дарницкий | B9: 0.325 | C9: - | D9: - | E9: 13.00 | G9: 4 суток
A10: Хлеб Дарницкий | B10: 0.65 | C10: 22.00 | D10: 23.50 | E10: 24.50 | F10: 36 часов | G10: 4 суток | H10: 18
A11: Хлеб Дарницкий витамин /новинка/ | B11: 0.65 | C11: - | D11: - | E11: 25.00
A12: Московский ржаной | B12: 0.50 | C12: 21.00 | D12: 22.00 | E12: - | F12: 36 часов | G12: 4 суток | H12: 24
A13: Хлеб Бородинский | B13: 0.30 | C13: 19.50 | D13: 20.50 | E13: - | F13: 36 часов | G13: 4 суток | H13: 24
A14: Хлеб «Абсолютик» | B14: 0.40 | C14: 23.00 | D14: 24.00 | E14: - | F14: 36 часов | G14: 4 суток | H14: 24
A15: Хлеб Подовый I сорт | B15: 0.50 | C15: 23.00 | D15: - | E15: 25.00 | F15: 24 часа | G15: 3 суток | H15: 12
A16: Хлеб «Геркулес 8 злаков» | B16: 0.40 | C16: 24.00 | D16: - | E16: 25.00 | F16: 24 часа | G16: 3 суток | H16: 10
A17: Хлеб Столичный | B17: 0.60 | C17: 25.00 | D17: - | E17: 26.00 | F17: 36 часов | G17: 4 суток | H17: 6
A18: Хлеб Российский | B18: 0.50 | C18: 24.00 | D18: - | E18: 25.00 | F18: 36 часов | G18: 4 суток | H18: 10
A19: Хлеб «Баварский» | B19: 0.40 | C19: 25.00 | D19: - | E19: 26.00 | F19: 36 часов | G19: 4 суток | H19: 10
A20: Хлеб «Мариинский» | B20: 0.40 | C20: 28.00 | D20: - | E20: 29.00 | F20: 36 часов | G20: 4 суток | H20: 10
A21: Хлеб «Тостовый» к завтраку | B21: 0.40 | C21: 24.00 | D21: - | E21: 25.00 | F21: 24 часа | G21: 3 суток | H21: 14
A22: Хлеб «Тостовый» к завтраку | B22: 0.20 | C22: - | D22: - | E22: 13.00 | G22: 3 суток
A23: Хлеб «Здоровье» I сорт | B23: 0.40 | C23: 25.00 | D23: - | E23: 25.00 | F23: 24 часа | G23: 3 суток | H23: 10
A24: Хлеб «Полоцкий» | B24: 0.30 | C24: 25.00 | D24: 26.00 | E24: - | F24: 36 часов | G24: 3 суток | H24: 30
A25: Хлеб «Белорусский» с клюквой | B25: 0.30 | C25: - | D25: - | E25: 28.00 | F25: 36 часов | G25: 4 суток
A26: Хлеб зерновой "Овсяная история" с пророщенной зерновой смесью | B26: 0.20 | C26: - | D26: - | E26: 23.00 | F26: 36 часов | G26: 4 суток | H26: 30
A27: Хлеб "Рябинушка" пшеничный витам. 1 сорт | B27: 0.55 | C27: - | D27: - | E27: 23.50
A28: Хлеб "Волшебная рожь" тостовый | B28: 0.18 | C28: - | D28: - | E28: 12.00 | G28: 4 суток
A29: Хлеб бездрожжевой "Утренний" 0,45кг уп /новинка/ | B29: 0.45 | C29: - | D29: 30.00 | E29: -
A30: Хлебец "Деревенский" 0,25кг уп | B30: 0.25 | D30: 15.00 | F30: 72 часа | G30: 3 суток
A31: Квас сухой хлебный | B31: 0.50 | D31: 20.00 | G31: 6 месяцев
A32: БАТОНЫ И БУЛОЧНЫЕ ИЗДЕЛИЯ
A33: Батон Нарезной в/с | B33: 0.40 | C33: 20.00 | D33: 20.50 | E33: 21.20 | F33: 24 часа | G33: 3 суток | H33: 14
A34: Батон с изюмом в/с | B34: 0.35 | C34: 23.00 | D34: 25.00 | E34: - | F34: 24 часа | G34: 3 суток | H34: 14
A35: Батон Особый в/с | B35: 0.35 | C35: - | D35: 20.00 | E35: 21.20 | F35: 24 часа | G35: 3 суток | H35: 10
A36: Бон Багет | B36: 0.30 | D36: 20.00 | F36: 96 часов | G36: 4 суток
A37: Витушка Сдобная в/с | B37: 0.40 | C37: 26.00 | D37: 28.00 | E37: - | F37: 24 часа | G37: - | H37: 14
A38: Крендель с маком в/с | B38: 0.40 | C38: - | D38: 40.00 | E38: - | F38: 24 часа | G38: - | H38: 6
A39: Булка Ярославская I сорт | B39: 0.10 | D39: 9.70 | E39: - | F39: 16 часов | G39: 2 суток | H39: 20
A40: Сдоба Выборгская в/с сорт | B40: 0.10 | C40: 12.00 | D40: 12.50 | E40: -
A41: Плюшка Московская | B41: 0.10 | C41: 10.50 | D41: 11.00 | E41: - | F41: 16 часов | G41: 2 суток | H41: 20
A42: Ватрушка"Дельфийская" с натуральными ягодами /новинка/ | B42: 0.07 | C42: - | D42: 15.00 | E42: - | F42: 16 часов | G42: 2 суток | H42: 20
A43: Рулетик с маком в/с | B43: 0.10 | C43: 18.00 | D43: 19.00 | E43: - | F43: 16 часов | G43: 2 суток
A44: Гребешок ягодный | B44: 0.10 | C44: - | D44: 18.00 | E44: - | F44: 16 часов | G44: 2 суток
A45: Рогалик с вареной сгущенкой в/с /новинка/ | B45: 0.10 | C45: 12.30 | D45: 13.00 | E45: -
A46: ИЗДЕЛИЯ ИЗ СЛОЕННОГО ТЕСТА
A47: Булочка к чаю (с абрикосовой начинкой) | B47: 0.07 | C47: - | D47: 16.00 | E47: - | F47: 24 часа | G47: 3 суток | H47: 30
A48: Круассан с вареным сгущ. молоком | B48: 0.09 | C48: - | D48: 17.00 | E48: - | F48: 24 часа | G48: 3 суток | H48: 30
A49: Круассан с земляничной начинкой | B49: 0.09 | C49: - | D49: 18.00 | F49: 24 часа | G49: 3 суток | H49: 30
A50: Круассан сшоколадной начинкой | B50: 0.09 | C50: - | D50: 20.00 | E50: -
A51: Слойка «Забава» с яблочной начинкой | B51: 0.07 | C51: 17.00 | D51: 18.00 | E51: - | F51: 24 часа | G51: 3 суток | H51: 40
A52: Слойка «Забава» с вишневой начинкой | B52: 0.07 | C52: - | D52: 18.00 | E52: - | F52: 24 часа | G52: 3 суток | H52: 40
A53: Слойка «Забава» с творожной начинкой | B53: 0.07 | D53: 15.00
A54: ХЛЕБНЫЕ ИЗДЕЛИЯ
A55: Хлебцы «Шотландские» | B55: 0.07 | C55: - | D55: 10.00 | E55: - | F55: 16 часов | G55: 3 суток | H55: 40
A56: Сырная палочка | B56: 0.075 | C56: 16.3 | D56: 17.00 | G56: 72 часа
A57: СУХАРИ
A58: Сухари пшеничные сладкие в/с | B58: 0.5 | C58: - | D58: 38.00 | E58: - | F58: - | G58: 30 суток | H58: -
A59: Сухари-гренки пшеничные в/с | B59: 0.3 | C59: - | D59: 19.00 | E59: - | F59: - | G59: 30 суток | H59: -
A60: Сухари-гренки ржаные | B60: 0.3 | C60: - | D60: 16.00 | E60: - | F60: - | G60: 30 суток | H60: -
A61: Сухари панировочные | B61: 0.5 | C61: - | D61: 15.00 | E61: - | F61: - | G61: 4 мес. | H61: -
A62: Сухари панировочные | B62: 1.0 | C62: - | D62: 30.00 | E62: - | F62: - | G62: 4 мес. | H62: -
A63: ТЕСТО
A64: Тесто дрож. сдобное в/с | B64: 1.0 | C64: 65.00 | F64: 24 ч при t=+5-0 72 ч при t=-5-0
A65: Тесто дрожжевое в/с | B65: 1.0 | C65: 44.00
A66: Тесто слоенное пресное в/с | B66: 1/5 кг | D66: 70.00
A67: Тесто слоенное пресное в/с | B67: 1.0 | D67: 72.00
A68: Тесто слоеное дрожжевое в/с | B68: 1.0 | C68: 77.00 | F68: 30 суток при t=-18
A69: Тесто слоеное дрожжевое в/с | B69: 0.6 | C69: 60.00
A70: Тесто слоеное дрожжевое в/с | B70: 1/5 кг | C70: 74.00
